bitfinex/quotes_SOLUSD_20250621
["timestamp","ask_amount","ask_price","bid_price","bid_amount"]
[1750515373061,9.56141337,140.87,140.83,24.85158337]
[1750515373262,8.83141337,140.85,140.83,24.85158337]
[1750515374366,7.83141337,140.85,140.83,24.85158337]
[1750515374555,8.83141337,140.86,140.83,24.85158337]
[1750515376361,0.73,140.87,140.83,24.85158337]
[1750515376659,8.83141337,140.86,140.83,24.85158337]
[1750515377072,0.73,140.87,140.83,24.85158337]
[1750515377271,8.83141337,140.86,140.83,24.85158337]
[1750515378461,0.69,140.85,140.83,24.85158337]
[1750515378656,8.83141337,140.86,140.83,24.85158337]
[1750515380187,9.52141337,140.86,140.83,24.85158337]
[1750515380998,8.83141337,140.86,140.83,24.85158337]
[1750515384202,8.83141337,140.87,140.83,24.85158337]
[1750515385881,9.52141337,140.87,140.83,24.85158337]
[1750515386201,8.83141337,140.86,140.83,24.85158337]
[1750515387369,9.52141337,140.87,140.83,24.85158337]
[1750515388903,26.0,140.89,140.83,60.35538227]
[1750515389192,34.83141337,140.89,140.85,8.83141337]
[1750515389789,35.52141337,140.89,140.85,8.83141337]
[1750515390190,9.52141337,140.88,140.84,8.83141337]
[1750515390694,8.83141337,140.87,140.83,60.35538227]
[1750515390879,9.52141337,140.87,140.83,60.35538227]
[1750515391778,8.83141337,140.86,140.83,24.85158337]
[1750515391977,9.52141337,140.84,140.83,24.85158337]
[1750515394893,34.83141337,140.86,140.83,24.85158337]
[1750515395278,26.0,140.86,140.83,24.85158337]
[1750515395895,9.52141337,140.87,140.83,33.68299674]
[1750515396780,8.83141337,140.87,140.83,33.68299674]
[1750515397385,9.52141337,140.87,140.83,33.68299674]
[1750515397681,9.52141337,140.87,140.83,24.85158337]
[1750515398773,8.83141337,140.87,140.83,24.85158337]
[1750515399001,0.69,140.86,140.83,24.85158337]
[1750515400785,8.83141337,140.86,140.83,24.85158337]
[1750515400983,9.52141337,140.84,140.83,24.85158337]
[1750515402672,9.52141337,140.84,140.83,7.10075978]
[1750515402876,0.69,140.83,140.78,7.10328171]
[1750515403077,9.52141337,140.79,140.78,7.10328171]
[1750515403808,9.52141337,140.79,140.77,6.34]
[1750515404108,35.52141337,140.78,140.77,7.10359711]
[1750515404474,34.83141337,140.78,140.75,7.10479573]
[1750515404715,8.83141337,140.76,140.7,42.64226326]
[1750515404875,0.72,140.76,140.7,69.24197798]
[1750515405072,8.83141337,140.76,140.72,8.83141337]
[1750515405500,34.83141337,140.78,140.73,8.83141337]
[1750515405710,26.0,140.78,140.73,8.83141337]
[1750515405903,8.83141337,140.77,140.73,8.83141337]
[1750515406429,8.83141337,140.79,140.74,8.83141337]
[1750515406900,35.55141337,140.8,140.75,26.59340271]
[1750515407506,8.83141337,140.79,140.75,26.59340271]
[1750515407671,8.83141337,140.78,140.75,17.76198934]
[1750515408584,59.53887879,140.79,140.75,17.76198934]
[1750515408790,8.83141337,140.78,140.75,24.86678507]
[1750515409313,8.83141337,140.77,140.75,24.86678507]
[1750515409680,9.55141337,140.77,140.75,24.86678507]
[1750515409903,32.03056434,140.77,140.75,24.86678507]
[1750515410403,31.31056434,140.77,140.75,24.86678507]
[1750515410597,22.47915097,140.77,140.75,24.86678507]
[1750515410907,22.47915097,140.77,140.75,17.76198934]
[1750515412897,32.03056434,140.77,140.75,17.76198934]
[1750515413106,8.83141337,140.76,140.75,17.76198934]
[1750515413308,29.37376414,140.76,140.75,17.76198934]
[1750515413805,20.54235077,140.76,140.75,17.76198934]
[1750515414199,20.54235077,140.76,140.73,24.87031904]
[1750515414404,20.54235077,140.76,140.73,33.70173241]
[1750515414706,20.54235077,140.76,140.74,8.83141337]
[1750515415605,20.54235077,140.76,140.75,8.83141337]
[1750515416600,20.54235077,140.76,140.75,15.9362091]
[1750515416797,20.54235077,140.76,140.75,22.1433091]
[1750515416996,20.54235077,140.76,140.75,57.7033091]
[1750515421820,20.54235077,140.76,140.75,48.87189573]
[1750515421989,20.54235077,140.76,140.75,57.7033091]
[1750515425808,20.54235077,140.76,140.75,51.4962091]
[1750515426003,20.54235077,140.76,140.75,42.66479573]
[1750515426200,21.26235077,140.76,140.75,13.44479573]
[1750515426504,20.54235077,140.76,140.75,51.4962091]
[1750515426714,20.54235077,140.76,140.75,216.34585796]
[1750515427593,20.54235077,140.76,140.75,207.51444459]
[1750515427807,20.54235077,140.76,140.75,168.4762091]
[1750515428004,20.54235077,140.76,140.75,216.34585796]
[1750515429618,20.54235077,140.76,140.75,207.51444459]
[1750515429822,20.54235077,140.76,140.75,42.66479573]
[1750515433331,21.26235077,140.76,140.75,13.44479573]
[1750515433514,29.37376414,140.76,140.73,54.09031904]
[1750515433704,0.72,140.75,140.73,54.09031904]
[1750515433910,8.83141337,140.75,140.73,24.87031904]
[1750515434105,0.72,140.74,140.73,24.87031904]
[1750515434828,0.72,140.74,140.73,7.10580544]
[1750515434829,9.55141337,140.74,140.73,7.10580544]
[1750515435543,0.71,140.73,140.69,7.10782571]
[1750515435715,9.54141337,140.7,140.69,7.10782571]
[1750515436103,8.83141337,140.72,140.69,24.87739]
[1750515436302,0.71,140.71,140.69,24.87739]
[1750515437346,8.83141337,140.71,140.69,24.87739]
[1750515437521,0.71,140.7,140.69,24.87739]
[1750515437703,0.71,140.7,140.69,17.76956429]
[1750515438306,9.54141337,140.7,140.69,17.76956429]
[1750515438941,0.71,140.7,140.69,17.76956429]
[1750515439431,8.83141337,140.72,140.69,17.76956429]
[1750515439620,9.54141337,140.71,140.69,17.76956429]
[1750515440211,8.83141337,140.71,140.69,17.76956429]
[1750515440419,0.71,140.7,140.69,17.76956429]
[1750515441529,9.54141337,140.7,140.69,17.76956429]
[1750515442319,0.71,140.69,140.68,7.10833096]
[1750515442629,9.54141337,140.69,140.68,7.10833096]
[1750515443124,9.54141337,140.69,140.64,24.88623435]
[1750515443125,8.83141337,140.69,140.64,24.88623435]
[1750515443432,8.83141337,140.67,140.64,24.88623435]
[1750515443644,0.71,140.65,140.64,24.88623435]
[1750515444425,9.54141337,140.65,140.64,24.88623435]
[1750515444630,0.71,140.65,140.64,7.11035267]
[1750515445106,9.54141337,140.65,140.63,7.11085828]
[1750515445314,0.71,140.64,140.63,7.11085828]
[1750515445517,9.54141337,140.64,140.63,7.11085828]
[1750515445718,27.646,140.67,140.63,24.88800398]
[1750515445912,9.54141337,140.65,140.63,24.88800398]
[1750515446514,0.71,140.65,140.63,24.88800398]
[1750515447119,9.54141337,140.65,140.63,24.88800398]
[1750515447415,0.71,140.64,140.63,24.88800398]
[1750515448139,9.54141337,140.64,140.63,7.11085828]
[1750515448858,8.83141337,140.64,140.62,7.11130266]
[1750515449016,8.83141337,140.64,140.58,46.04]
[1750515449017,0.71,140.61,140.57,24.14399487]
[1750515449332,26.0,140.62,140.58,7.11338739]
[1750515449333,0.71,140.59,140.58,7.11338739]
[1750515450217,16.18308079,140.59,140.58,7.11338739]
[1750515450415,25.01449416,140.59,140.58,7.11338739]
[1750515450719,16.18308079,140.59,140.58,7.11338739]
[1750515452560,15.47308079,140.59,140.58,15.94480076]
[1750515452920,15.47308079,140.59,140.58,34.59444962]
[1750515453230,15.47308079,140.59,140.58,7.11338739]
[1750515453428,15.47308079,140.59,140.58,15.94480076]
[1750515453630,15.47308079,140.59,140.58,7.11338739]
[1750515453845,15.47308079,140.59,140.58,15.94480076]
[1750515454324,15.47308079,140.59,140.58,7.11338739]
[1750515454523,15.47308079,140.59,140.58,34.59444962]
[1750515458440,15.47308079,140.59,140.58,153.31338739]
[1750515458648,15.47308079,140.59,140.58,63.95444962]
[1750515459715,0.71,140.66,140.59,18.64964886]
[1750515459945,0.71,140.66,140.63,8.83141337]
[1750515460428,9.54141337,140.67,140.64,7.11035267]
[1750515460743,0.71,140.65,140.64,7.11035267]
[1750515461420,9.54141337,140.65,140.64,7.11035267]
[1750515462048,28.3744,140.65,140.64,7.11035267]
[1750515462252,37.20581337,140.65,140.64,7.11035267]
[1750515462613,37.20581337,140.65,140.61,24.89150163]
[1750515462614,0.71,140.64,140.61,24.89150163]
[1750515462814,36.49581337,140.65,140.61,24.89150163]
[1750515463018,0.71,140.64,140.61,24.89150163]
[1750515463451,8.83141337,140.62,140.61,7.11186971]
[1750515463648,9.54141337,140.62,140.61,7.11186971]
[1750515464239,0.71,140.62,140.61,7.11186971]
[1750515464553,0.71,140.62,140.59,24.89501483]
[1750515464843,0.69,140.62,140.59,24.89501483]
[1750515465219,0.69,140.61,140.59,33.7264282]
[1750515465620,0.69,140.61,140.59,26.61354678]
[1750515465821,0.69,140.61,140.59,17.78213341]
[1750515466132,8.83141337,140.63,140.59,17.78213341]
[1750515466133,0.69,140.62,140.59,26.61354678]
[1750515466849,8.83141337,140.62,140.59,17.78213341]
[1750515467054,27.6644,140.65,140.59,17.78213341]
[1750515467225,0.69,140.63,140.59,26.61354678]
[1750515467554,0.69,140.63,140.59,17.78213341]
[1750515467724,0.69,140.63,140.6,8.83141337]
[1750515468125,8.83141337,140.62,140.59,17.78213341]
[1750515468327,0.69,140.6,140.59,17.78213341]
[1750515468633,9.52141337,140.6,140.59,17.78213341]
[1750515469042,9.52141337,140.6,140.58,7.11338739]
[1750515469043,8.83141337,140.6,140.58,7.11338739]
[1750515469240,27.48106223,140.64,140.58,7.11338739]
[1750515469241,9.52141337,140.59,140.58,7.11338739]
[1750515469629,9.52141337,140.59,140.55,60.47512925]
[1750515469829,0.69,140.58,140.55,69.30654262]
[1750515471142,26.0,140.61,140.56,8.83141337]
[1750515471143,8.83141337,140.6,140.56,8.83141337]
[1750515471462,26.69,140.61,140.55,24.90217003]
[1750515471463,0.69,140.56,140.55,24.90217003]
[1750515471655,9.52141337,140.56,140.55,24.90217003]
[1750515472650,9.52141337,140.56,140.55,7.11490572]
[1750515473047,8.83141337,140.56,140.52,24.90635367]
[1750515473262,9.52141337,140.53,140.52,24.90635367]
[1750515473459,11.07341337,140.53,140.52,7.1164247]
[1750515473644,2.242,140.53,140.52,7.1164247]
[1750515473846,0.69,140.54,140.52,7.1164247]
[1750515474182,13.40725048,140.57,140.52,15.94783807]
[1750515474183,0.69,140.56,140.52,15.94783807]
[1750515474470,9.52141337,140.56,140.52,33.73889984]
[1750515474870,0.69,140.56,140.53,8.83141337]
[1750515475084,11.85525048,140.57,140.55,8.83141337]
[1750515475242,11.85525048,140.57,140.53,29.56]
[1750515475441,11.85525048,140.57,140.55,8.83141337]
[1750515475675,11.85525048,140.57,140.54,8.83141337]
[1750515475881,11.85525048,140.57,140.53,29.56]
[1750515476045,11.85525048,140.57,140.55,8.83141337]
[1750515476243,11.85525048,140.57,140.53,29.56]
[1750515476244,12.54525048,140.57,140.53,29.56]
[1750515476462,11.85525048,140.57,140.53,29.56]
[1750515476677,11.85525048,140.57,140.55,8.83141337]
[1750515477082,12.54525048,140.57,140.56,7.11439954]
[1750515477370,21.37666385,140.57,140.56,7.11439954]
[1750515477546,12.54525048,140.57,140.56,7.11439954]
[1750515478857,11.85525048,140.57,140.55,15.94631909]
[1750515479169,11.85525048,140.57,140.56,8.83141337]
[1750515479856,11.85525048,140.57,140.55,15.94631909]
[1750515480247,11.85525048,140.57,140.56,8.83141337]
[1750515480451,11.85525048,140.57,140.55,15.94631909]
[1750515481751,11.85525048,140.57,140.56,8.83141337]
[1750515482769,12.54525048,140.57,140.55,15.94631909]
[1750515483071,12.54525048,140.57,140.55,7.11490572]
[1750515483856,12.54525048,140.57,140.55,15.94631909]
[1750515484255,11.85525048,140.57,140.55,15.94631909]
[1750515484559,11.85525048,140.57,140.56,8.83141337]
[1750515484966,11.85525048,140.57,140.56,15.94581291]
[1750515485755,26.0,140.61,140.56,33.73181177]
[1750515485957,34.83141337,140.63,140.59,8.83141337]
[1750515486280,0.69,140.62,140.59,8.83141337]
[1750515486863,0.69,140.62,140.58,8.83141337]
[1750515487748,0.69,140.62,140.59,8.83141337]
[1750515487949,0.69,140.62,140.6,7.11237553]
[1750515488372,34.83141337,140.63,140.6,7.11237553]
[1750515488674,9.52141337,140.61,140.6,7.11237553]
[1750515489951,0.69,140.61,140.59,17.78184131]
[1750515491249,0.69,140.61,140.59,24.89472273]
[1750515493681,26.0,140.63,140.6,8.83141337]
[1750515494273,9.53141337,140.66,140.61,8.83141337]
[1750515494455,0.7,140.65,140.61,8.83141337]
[1750515494867,9.53141337,140.67,140.62,8.83141337]
[1750515495076,0.7,140.66,140.63,8.83141337]
[1750515495277,11.21326592,140.68,140.65,8.83141337]
[1750515495477,10.51326592,140.68,140.67,7.10883628]
[1750515496379,10.51326592,140.68,140.67,15.94024965]
[1750515496572,26.0,140.7,140.67,33.71234035]
[1750515496770,26.7,140.7,140.67,33.71234035]
[1750515497280,0.7,140.69,140.67,24.88092698]
[1750515497876,0.7,140.69,140.67,33.71234035]
[1750515498191,0.7,140.74,140.68,8.83141337]
[1750515498489,0.7,140.73,140.7,8.83141337]
[1750515498675,26.7,140.73,140.7,8.83141337]
[1750515498883,34.83141337,140.73,140.69,8.83141337]
[1750515499069,8.83141337,140.74,140.7,8.83141337]
[1750515499386,9.53141337,140.74,140.7,8.83141337]
[1750515499696,0.7,140.74,140.71,33.70526739]
[1750515500094,9.53141337,140.77,140.73,8.83141337]
[1750515500299,0.7,140.77,140.74,8.83141337]
[1750515500463,0.7,140.77,140.73,8.83141337]
[1750515501083,12.30934804,140.79,140.76,8.83141337]
[1750515501084,10.66804804,140.79,140.76,8.83141337]
[1750515501272,0.7,140.81,140.77,8.83141337]
[1750515501475,8.83141337,140.83,140.79,15.93419055]
[1750515501768,7.8252,140.86,140.8,8.83141337]
[1750515502002,8.83141337,140.85,140.81,8.83141337]
[1750515502266,0.7,140.81,140.79,7.10277718]
[1750515502497,0.7,140.8,140.79,7.10277718]
[1750515503199,8.83141337,140.8,140.77,7.10333658]
[1750515503372,9.53141337,140.78,140.77,7.10333658]
[1750515503567,0.7,140.78,140.75,17.76088634]
[1750515503781,9.53141337,140.78,140.75,17.76088634]
[1750515504697,8.83141337,140.78,140.75,17.76088634]
[1750515504991,9.53141337,140.77,140.74,7.10530055]
[1750515505400,9.53141337,140.77,140.74,24.86855193]
[1750515505697,0.7,140.8,140.74,33.6999653]
[1750515505991,8.83141337,140.78,140.74,24.86855193]
[1750515506188,0.7,140.8,140.74,24.86855193]
[1750515506392,9.53141337,140.8,140.75,8.83141337]
[1750515506769,8.83141337,140.79,140.75,8.83141337]
[1750515507573,0.7,140.82,140.76,8.83141337]
[1750515507886,8.83141337,140.81,140.77,33.69466547]
[1750515508070,9.53141337,140.82,140.77,33.69466547]
[1750515508265,8.83141337,140.82,140.77,33.69466547]
[1750515508469,0.7,140.81,140.77,33.69466547]
[1750515510097,9.53141337,140.82,140.78,8.83141337]
[1750515510404,0.7,140.85,140.79,8.83141337]
[1750515510601,0.7,140.85,140.78,29.72]
[1750515510602,8.83141337,140.84,140.8,8.83141337]
[1750515510775,35.53141337,140.85,140.8,8.83141337]
[1750515511301,9.53141337,140.84,140.8,8.83141337]
[1750515511470,8.83141337,140.84,140.79,8.83141337]
[1750515511673,0.7,140.83,140.79,8.83141337]
[1750515511900,0.7,140.83,140.8,24.85795453]
[1750515512102,26.0,140.85,140.8,24.85795453]
[1750515512300,8.83141337,140.85,140.8,24.85795453]
[1750515512483,9.53141337,140.85,140.8,33.6893679]
[1750515512803,9.53141337,140.84,140.8,24.85795453]
[1750515513002,9.53141337,140.84,140.8,33.6893679]
[1750515513788,8.83141337,140.84,140.8,33.6893679]
[1750515513995,34.83141337,140.85,140.8,24.85795453]
[1750515514203,35.53141337,140.85,140.81,8.83141337]
[1750515515084,26.0,140.85,140.81,8.83141337]
[1750515515413,8.83141337,140.87,140.82,27.48106223]
[1750515515597,8.83141337,140.88,140.84,8.83141337]
[1750515515906,8.83141337,140.88,140.85,24.84913027]
[1750515516102,35.53141337,140.88,140.85,24.84913027]
[1750515516808,9.53141337,140.88,140.85,24.84913027]
[1750515517205,35.53141337,140.88,140.85,24.84913027]
[1750515517913,8.83141337,140.89,140.85,24.84913027]
[1750515518088,8.83141337,140.89,140.85,33.68054364]
[1750515518284,8.83141337,140.9,140.85,33.68054364]
[1750515518484,27.5125,140.92,140.86,8.83141337]
[1750515518806,27.5125,140.92,140.85,54.52913027]
[1750515518807,9.53141337,140.91,140.87,8.83141337]
[1750515519031,9.53141337,140.91,140.86,8.83141337]
[1750515519194,0.7,140.91,140.86,8.83141337]
[1750515519397,0.7,140.94,140.89,8.83141337]
[1750515519598,0.7,140.94,140.91,8.83141337]
[1750515519796,9.53141337,140.94,140.9,8.83141337]
[1750515520108,9.53141337,140.94,140.89,8.83141337]
[1750515520585,9.53141337,140.93,140.89,8.83141337]
[1750515520782,0.7,140.92,140.87,39.54578339]
[1750515520986,26.0,140.94,140.87,24.84560232]
[1750515521220,26.0,140.94,140.87,7.09874352]
[1750515521221,14.70018107,140.88,140.87,7.09874352]
[1750515521398,0.7,140.87,140.85,7.0997515]
[1750515521718,14.70018107,140.86,140.85,7.0997515]
[1750515521888,15.40018107,140.87,140.85,7.0997515]
[1750515522813,26.0,140.89,140.85,24.84913027]
[1750515522814,14.70018107,140.88,140.85,24.84913027]
[1750515523321,14.70018107,140.87,140.85,17.74937877]
[1750515523516,26.0,140.9,140.85,17.74937877]
[1750515523817,14.70018107,140.86,140.85,17.74937877]
[1750515523987,14.70018107,140.87,140.85,17.74937877]
[1750515524187,16.09018107,140.87,140.85,17.74937877]
[1750515525318,15.39018107,140.86,140.83,24.85265923]
[1750515525487,14.70018107,140.85,140.83,24.85265923]
[1750515525687,15.39018107,140.85,140.83,24.85265923]
[1750515526992,14.70018107,140.86,140.83,24.85265923]
[1750515527193,15.40018107,140.87,140.83,24.85265923]
[1750515527405,16.09018107,140.87,140.83,24.85265923]
[1750515527603,0.69,140.86,140.83,24.85265923]
[1750515527807,15.39018107,140.85,140.83,24.85265923]
[1750515528193,15.39018107,140.84,140.83,7.10075978]
[1750515528928,0.69,140.8,140.79,7.10277718]
[1750515529101,15.39018107,140.8,140.79,7.10277718]
[1750515529509,15.39018107,140.8,140.78,7.10328171]
[1750515529715,15.39018107,140.79,140.78,7.10328171]
[1750515530413,0.69,140.78,140.77,115.38930054]
[1750515530599,15.39018107,140.78,140.77,7.10364086]
[1750515531601,14.70018107,140.78,140.74,7.10530055]
[1750515531914,14.70018107,140.76,140.74,7.10530055]
[1750515532119,14.70018107,140.75,140.74,7.10530055]
[1750515532431,14.70018107,140.75,140.7,83.86475493]
[1750515532432,14.70018107,140.75,140.7,7.10732054]
[1750515532633,15.39018107,140.71,140.7,7.10732054]
[1750515533213,15.39018107,140.71,140.69,7.10764409]
[1750515533528,0.69,140.69,140.65,24.88323414]
[1750515533698,40.70018107,140.7,140.65,39.58341521]
[1750515534048,14.70018107,140.71,140.67,14.70018107]
[1750515535419,15.39018107,140.72,140.67,14.70018107]
[1750515535724,15.39018107,140.72,140.68,24.87915836]
[1750515536031,14.70018107,140.73,140.69,14.70018107]
[1750515536235,15.39018107,140.73,140.69,14.70018107]
[1750515536739,0.69,140.76,140.71,14.70018107]
[1750515536897,14.70018107,140.74,140.7,14.70018107]
[1750515537095,14.70018107,140.73,140.69,33.34982993]
[1750515537421,40.70018107,140.75,140.71,14.70018107]
[1750515537721,41.39018107,140.75,140.72,7.1063104]
[1750515538307,41.39018107,140.75,140.72,24.8720864]
[1750515538611,26.0,140.75,140.72,39.57226747]
[1750515538938,26.0,140.75,140.72,24.8720864]
[1750515540122,26.0,140.75,140.72,17.765776]
[1750515540312,26.69,140.75,140.72,17.765776]
[1750515540525,0.69,140.74,140.72,17.765776]
[1750515540837,0.69,140.73,140.72,17.765776]
[1750515541418,15.39018107,140.73,140.71,7.10681543]
[1750515541650,0.69,140.72,140.71,7.10681543]
[1750515541947,41.39018107,140.75,140.71,24.87385402]
[1750515542318,0.69,140.74,140.71,24.87385402]
[1750515543518,0.69,140.74,140.71,32.46721966]
[1750515543714,41.39018107,140.77,140.72,14.70018107]
[1750515543923,0.69,140.76,140.72,14.70018107]
[1750515544139,14.70018107,140.76,140.72,14.70018107]
[1750515544350,15.39018107,140.76,140.72,14.70018107]
[1750515544520,0.69,140.76,140.72,14.70018107]
[1750515545524,0.69,140.74,140.72,7.1063104]
[1750515545721,0.69,140.73,140.72,7.1063104]
[1750515546649,15.39018107,140.73,140.72,7.1063104]
[1750515547026,14.70018107,140.73,140.69,7.10782571]
[1750515547342,26.0,140.74,140.68,7.10822593]
[1750515547343,26.69,140.69,140.68,7.10822593]
[1750515547639,14.70018107,140.69,140.65,24.88321925]
[1750515547936,0.69,140.66,140.65,7.10984713]
[1750515548637,15.39018107,140.66,140.65,7.10984713]
[1750515548838,0.69,140.66,140.65,7.10984713]
[1750515549064,15.39018107,140.66,140.65,7.10984713]
[1750515549437,0.69,140.66,140.65,7.10984713]
[1750515549739,15.39018107,140.66,140.65,7.10984713]
[1750515550247,26.69,140.71,140.65,24.88446497]
[1750515550424,41.39018107,140.68,140.65,24.88446497]
[1750515550736,15.39018107,140.66,140.65,24.88446497]
[1750515551130,40.70018107,140.68,140.65,24.88446497]
[1750515551312,14.70018107,140.67,140.65,24.88446497]
[1750515551517,41.39018107,140.66,140.65,7.10984713]
[1750515552328,41.39018107,140.66,140.62,17.77732492]
[1750515552523,14.70018107,140.65,140.62,17.77732492]
[1750515552832,15.39018107,140.65,140.62,17.77732492]
[1750515553241,15.39018107,140.66,140.62,32.47750599]
[1750515553430,15.39018107,140.65,140.62,17.77732492]
[1750515553625,0.69,140.65,140.62,17.77732492]
[1750515553833,14.70018107,140.66,140.62,17.77732492]
[1750515554346,41.39018107,140.68,140.64,14.70018107]
[1750515554643,15.44018107,140.67,140.63,14.70018107]
[1750515555625,15.44018107,140.67,140.64,24.88623435]
[1750515557748,14.70018107,140.66,140.64,24.88623435]
[1750515557932,15.44018107,140.66,140.64,24.88623435]
[1750515559062,15.44018107,140.66,140.62,24.88977384]
[1750515559355,15.44018107,140.66,140.62,39.58995491]
[1750515559862,14.70018107,140.67,140.62,39.58995491]
[1750515560062,0.74,140.69,140.62,39.58995491]
[1750515560063,0.74,140.69,140.64,33.34982993]
[1750515560232,15.44018107,140.7,140.65,14.70018107]
[1750515560439,41.44018107,140.7,140.65,14.70018107]
[1750515560667,14.70018107,140.68,140.62,236.32659363]
[1750515560977,14.70018107,140.68,140.64,14.70018107]
[1750515561260,14.70018107,140.68,140.65,24.88446497]
[1750515561469,14.70018107,140.69,140.65,39.58464604]
[1750515561760,15.44018107,140.69,140.65,39.58464604]
[1750515562146,0.74,140.68,140.65,24.88446497]
[1750515562549,15.44018107,140.68,140.65,24.88446497]
[1750515564360,14.70018107,140.68,140.65,24.88446497]
[1750515564664,14.70018107,140.69,140.65,39.58464604]
[1750515565160,40.70018107,140.7,140.66,14.70018107]
[1750515565360,14.70018107,140.69,140.65,75.13388173]
[1750515566548,14.70018107,140.72,140.67,14.70018107]
[1750515566755,14.70018107,140.72,140.68,14.70018107]
[1750515566959,24.96991465,140.73,140.69,14.70018107]
[1750515567469,10.26973358,140.73,140.69,14.70018107]
[1750515567676,10.26973358,140.73,140.7,14.70018107]
[1750515568344,10.26973358,140.73,140.71,7.10681543]
[1750515570347,10.26973358,140.73,140.71,21.8069965]
[1750515570561,10.26973358,140.73,140.71,7.10681543]
[1750515571648,15.44018107,140.72,140.71,7.10681543]
[1750515572048,0.74,140.72,140.71,7.10681543]
[1750515572460,15.44018107,140.72,140.71,7.10681543]
[1750515573178,10.26973358,140.73,140.71,21.8069965]
[1750515573667,10.26973358,140.73,140.71,7.10681543]
[1750515573872,25.70991465,140.73,140.71,7.10681543]
[1750515574046,15.44018107,140.72,140.71,7.10681543]
[1750515574761,0.74,140.72,140.71,7.10681543]
[1750515574970,15.44018107,140.72,140.71,7.10681543]
[1750515575779,15.44018107,140.72,140.7,17.76794653]
[1750515576279,10.26973358,140.73,140.7,17.76794653]
[1750515576984,10.26973358,140.73,140.7,32.4681276]
[1750515578072,10.26973358,140.73,140.69,14.70018107]
[1750515578371,25.70991465,140.73,140.69,14.70018107]
[1750515579154,10.26973358,140.73,140.71,14.70018107]
[1750515579392,10.26973358,140.73,140.72,14.70018107]
[1750515579684,0.74,140.79,140.73,18.64964886]
[1750515579883,0.74,140.79,140.75,14.70018107]
[1750515580086,0.74,140.79,140.76,24.86501846]
[1750515580458,0.74,140.79,140.76,39.56519953]
[1750515582180,0.74,140.79,140.76,24.86501846]
[1750515583217,26.0,140.81,140.76,60.38647341]
[1750515583570,15.44018107,140.8,140.76,75.08665448]
[1750515584271,0.74,140.8,140.76,75.08665448]
[1750515584572,26.0,140.81,140.78,14.70018107]
[1750515585098,14.70018107,140.84,140.8,14.70018107]
[1750515585275,26.0,140.84,140.81,24.85618919]
[1750515585477,14.70018107,140.83,140.81,24.85618919]
[1750515585794,15.39018107,140.82,140.81,7.10176834]
[1750515586181,0.69,140.82,140.81,7.10176834]
[1750515586368,15.39018107,140.82,140.81,7.10176834]
[1750515587277,15.39018107,140.82,140.78,24.86043814]
[1750515587475,0.69,140.82,140.78,24.86043814]
[1750515587804,14.70018107,140.83,140.78,75.07702779]
[1750515588096,0.69,140.83,140.79,14.70018107]
[1750515588294,41.39018107,140.84,140.8,14.70018107]
[1750515588671,12.0130995,140.85,140.81,14.70018107]
[1750515588672,26.71328057,140.85,140.81,14.70018107]
[1750515588876,12.0130995,140.85,140.81,14.70018107]
[1750515589082,12.0130995,140.85,140.82,14.70018107]
[1750515589297,2.9179,140.87,140.83,7.10075978]
[1750515589602,16.09018107,140.87,140.83,39.5528403]
[1750515589790,14.70018107,140.84,140.81,7.10176834]
[1750515589973,15.39018107,140.82,140.81,7.10176834]
[1750515592375,15.39018107,140.82,140.78,24.86031282]
[1750515592698,14.70018107,140.81,140.78,24.86031282]
[1750515593890,15.39018107,140.81,140.78,24.86031282]
[1750515594874,8.83428086,140.81,140.78,24.86031282]
[1750515595900,8.83428086,140.82,140.78,24.86031282]
[1750515596198,9.52428086,140.82,140.78,24.86031282]
[1750515596388,8.83428086,140.82,140.78,33.69459368]
[1750515596693,8.83428086,140.84,140.81,24.85618919]
[1750515597272,9.52428086,140.84,140.81,24.85618919]
[1750515597874,8.83428086,140.83,140.81,24.85618919]
[1750515598079,0.69,140.82,140.81,24.85618919]
[1750515598283,9.52428086,140.82,140.81,7.10176834]
[1750515598773,9.52428086,140.82,140.79,24.85963016]
[1750515598977,8.83428086,140.81,140.79,24.85963016]
[1750515599402,9.52428086,140.8,140.79,7.10277718]
[1750515600908,0.69,140.79,140.77,17.7593411]
[1750515601083,8.83428086,140.78,140.77,17.7593411]
[1750515602198,0.69,140.79,140.77,17.7593411]
[1750515602399,8.83428086,140.78,140.77,17.7593411]
[1750515602905,9.52428086,140.78,140.76,7.10429099]
[1750515603322,9.52428086,140.77,140.76,7.10429099]
[1750515603790,26.0,140.79,140.76,7.10429099]
[1750515603991,9.52428086,140.78,140.76,7.10429099]
[1750515604199,8.83428086,140.77,140.76,7.10429099]
[1750515606218,8.83428086,140.79,140.76,24.86501846]
[1750515607485,8.83428086,140.8,140.76,24.86501846]
[1750515607814,8.83428086,140.79,140.76,24.86501846]
[1750515608481,8.83428086,140.8,140.76,24.86501846]